bitfinex/quotes_BTCUSD_20250105
["timestamp","ask_amount","ask_price","bid_price","bid_amount"]
[1736090946949,0.00222032,97918.0,97917.0,2.36062924]
[1736090950380,0.00222032,97918.0,97917.0,2.46058924]
[1736090952470,0.00222032,97918.0,97917.0,2.53608924]
[1736090952863,0.00222032,97918.0,97917.0,2.54316924]
[1736090953275,0.00022032,97918.0,97917.0,2.63986924]
[1736090953481,0.00022032,97918.0,97917.0,2.64486924]
[1736090953681,0.00122032,97918.0,97917.0,2.65186924]
[1736090954097,0.00122032,97918.0,97917.0,2.64686924]
[1736090954320,0.00122032,97918.0,97917.0,2.54416924]
[1736090955129,0.00022032,97918.0,97917.0,2.53716924]
[1736090955515,0.00122032,97918.0,97917.0,2.54516924]
[1736090955715,0.00022032,97918.0,97917.0,2.53216924]
[1736090956148,0.00022032,97918.0,97917.0,2.54316924]
[1736090956585,0.00022032,97918.0,97917.0,2.53916924]
[1736090957009,0.00022032,97918.0,97917.0,2.54316924]
[1736090957426,0.00022032,97918.0,97917.0,2.53916924]
[1736090957866,0.00022032,97918.0,97917.0,2.54316924]
[1736090958682,0.00022032,97918.0,97917.0,2.53616924]
[1736090959077,0.00122032,97918.0,97917.0,2.54416924]
[1736090960015,0.00122032,97918.0,97917.0,2.81827939]
[1736090960746,0.0778,97944.0,97936.0,0.183793]
[1736090961124,0.00013472,97937.0,97936.0,0.34246921]
[1736090961749,0.00013472,97937.0,97936.0,0.34954921]
[1736090962516,0.00013472,97937.0,97936.0,0.35154921]
[1736090962719,0.07793472,97937.0,97936.0,0.36361902]
[1736090963037,0.00013472,97937.0,97936.0,0.86361902]
[1736090963415,0.00013472,97937.0,97936.0,2.36361902]
[1736090963610,0.00013472,97937.0,97936.0,1.86361902]
[1736090964417,0.00013472,97937.0,97936.0,1.88428039]
[1736090966316,0.00013472,97937.0,97936.0,1.88028039]
[1736090966745,0.00013472,97937.0,97936.0,1.88328039]
[1736090966971,0.00013472,97937.0,97936.0,1.88228039]
[1736090967974,0.00013472,97937.0,97936.0,1.88428039]
[1736090968527,0.00013472,97937.0,97936.0,2.09148039]
[1736090970445,0.00013472,97937.0,97936.0,2.08948039]
[1736090970658,7.2e-07,97937.0,97936.0,2.31564039]
[1736090971092,7.2e-07,97937.0,97936.0,2.31864039]
[1736090971939,8.612e-05,97937.0,97936.0,2.31864039]
[1736090972152,8.612e-05,97937.0,97936.0,2.52552836]
[1736090972373,8.612e-05,97937.0,97936.0,2.52352836]
[1736090972577,8.612e-05,97937.0,97936.0,2.52052836]
[1736090972821,8.612e-05,97937.0,97936.0,2.52552836]
[1736090973034,0.00108612,97937.0,97936.0,2.53452836]
[1736090973176,0.00108612,97937.0,97936.0,2.52952836]
[1736090973376,8.612e-05,97937.0,97936.0,2.52552836]
[1736090973583,8.612e-05,97937.0,97936.0,2.70780266]
[1736090973788,0.00108612,97937.0,97936.0,2.71680266]
[1736090973983,8.612e-05,97937.0,97936.0,2.70280266]
[1736090974248,8.612e-05,97937.0,97936.0,2.70780266]
[1736090974425,0.00108612,97937.0,97936.0,2.71680266]
[1736090975716,0.00108612,97937.0,97936.0,2.70472266]
[1736090975965,8.612e-05,97937.0,97936.0,2.70276266]
[1736090976239,0.0001708,97949.0,97948.0,0.33377]
[1736090976480,0.00022011,97949.0,97948.0,0.43775632]
[1736090976731,0.00022011,97949.0,97948.0,0.4694278]
[1736090977783,0.04682011,97949.0,97948.0,0.44875632]
[1736090978522,0.12252011,97949.0,97948.0,0.2264421]
[1736090978788,0.12252011,97949.0,97948.0,0.20181]
[1736090979076,0.12152011,97949.0,97948.0,0.19481]
[1736090979307,0.13055845,97949.0,97948.0,0.19781]
[1736090979555,0.13055845,97949.0,97948.0,0.20081]
[1736090980039,0.12955845,97949.0,97948.0,0.19081]
[1736090980539,0.12955845,97949.0,97948.0,0.19781]
[1736090981735,0.12955845,97949.0,97948.0,0.19077]
[1736090982127,0.12955845,97949.0,97948.0,0.19781]
[1736090982530,0.12955845,97949.0,97948.0,0.19381]
[1736090982531,0.12152011,97949.0,97948.0,0.19381]
[1736090982737,0.12152011,97949.0,97948.0,0.19081]
[1736090983192,0.12152011,97949.0,97948.0,0.19681]
[1736090983378,0.12152011,97949.0,97948.0,0.19281]
[1736090983688,0.12152011,97949.0,97948.0,0.18377]
[1736090983851,0.12152011,97949.0,97948.0,0.19581]
[1736090984054,0.12953642,97949.0,97948.0,0.19581]
[1736090984293,0.12953642,97949.0,97948.0,1.69581]
[1736090984646,0.12152011,97949.0,97948.0,1.69581]
[1736090985476,0.12152011,97949.0,97948.0,1.68877]
[1736090985689,0.12152011,97949.0,97948.0,1.69581]
[1736090985906,0.12152011,97949.0,97948.0,1.69281]
[1736090986108,0.12152011,97949.0,97948.0,1.69081]
[1736090986415,0.12152011,97949.0,97948.0,1.69181]
[1736090987411,0.12152011,97949.0,97948.0,0.19181]
[1736090987874,0.12953219,97949.0,97948.0,1.69181]
[1736090988051,0.12953219,97949.0,97948.0,1.69281]
[1736090988261,0.12152011,97949.0,97948.0,1.69281]
[1736090990775,0.12152011,97949.0,97948.0,0.19281]
[1736090991191,0.12952935,97949.0,97948.0,0.19281]
[1736090991408,0.12952935,97949.0,97948.0,1.69281]
[1736090991677,0.12811489,97949.0,97948.0,1.69281]
[1736090991889,0.12152011,97949.0,97948.0,1.69281]
[1736090992003,0.12152011,97949.0,97948.0,0.19281]
[1736090992232,0.12953537,97949.0,97948.0,0.19281]
[1736090992668,0.12152011,97949.0,97948.0,0.19181]
[1736090993105,0.12152011,97949.0,97948.0,0.19281]
[1736090993315,0.12953396,97949.0,97948.0,0.19381]
[1736090993524,0.12953396,97949.0,97948.0,0.19281]
[1736090993742,0.12953396,97949.0,97948.0,0.002]
[1736090993966,0.12953396,97949.0,97948.0,0.00804]
[1736090993967,0.12152011,97949.0,97948.0,0.00804]
[1736090994376,0.12152011,97949.0,97948.0,0.00904]
[1736090994794,0.12152011,97949.0,97948.0,0.00804]
[1736090996052,0.22152011,97949.0,97948.0,0.00804]
[1736090996470,0.22152011,97949.0,97948.0,0.001]
[1736090996695,0.2295235,97949.0,97948.0,0.00804]
[1736090997344,0.22152011,97949.0,97948.0,0.00904]
[1736090997800,0.22152011,97949.0,97948.0,0.00704]
[1736090998006,0.12952039,97949.0,97948.0,0.00704]
[1736090998217,0.00822039,97949.0,97948.0,0.00804]
[1736090999266,0.00822039,97949.0,97948.0,0.11202632]
[1736090999479,0.00822039,97949.0,97948.0,0.14375066]
[1736090999683,0.00022011,97949.0,97948.0,0.14375066]
[1736090999891,0.00022011,97949.0,97948.0,0.29275066]
[1736091000095,0.00022011,97949.0,97948.0,0.31675066]
[1736091000302,0.00022011,97949.0,97948.0,1.81675066]
[1736091000519,0.00022011,97949.0,97948.0,1.91671066]
[1736091000740,0.000171,97952.0,97949.0,0.456729]
[1736091000968,0.000171,97952.0,97949.0,0.59243966]
[1736091001788,0.000171,97952.0,97949.0,2.09243966]
[1736091001988,0.000171,97952.0,97949.0,2.09643966]
[1736091002400,0.000171,97952.0,97949.0,2.65525106]
[1736091003324,0.000171,97952.0,97949.0,2.4270619]
[1736091003739,0.0011708,97950.0,97949.0,2.4792619]
[1736091004753,0.0011708,97950.0,97949.0,2.4752619]
[1736091004944,0.0001708,97950.0,97949.0,2.4712619]
[1736091005203,0.0001708,97950.0,97949.0,2.4772619]
[1736091006103,0.05,97960.0,97949.0,2.4772619]
[1736091006104,0.049717,97960.0,97959.0,0.09996]
[1736091006317,0.049717,97960.0,97959.0,0.40867066]
[1736091006751,0.049717,97960.0,97959.0,1.90867066]
[1736091006990,0.049717,97960.0,97959.0,2.09242066]
[1736091007642,0.049717,97960.0,97959.0,2.4230429]
[1736091008065,0.049717,97960.0,97959.0,2.4340429]
[1736091008279,0.0766,97993.0,97968.0,0.09996]
[1736091008483,0.0766,97993.0,97970.0,0.356729]
[1736091008709,0.0766,97993.0,97970.0,0.49243966]
[1736091008900,0.0766,97993.0,97970.0,1.99243966]
[1736091010999,0.0766,97993.0,97970.0,1.99543966]
[1736091011629,0.0766,97993.0,97970.0,2.00347966]
[1736091012305,0.0766,97993.0,97970.0,2.00143966]
[1736091012869,0.0766,97993.0,97970.0,2.10139966]
[1736091013431,0.0766,97993.0,97970.0,2.11175652]
[1736091013634,0.0766,97993.0,97970.0,2.10775652]
[1736091014064,0.0766,97993.0,97970.0,2.11175652]
[1736091014452,0.0766,97993.0,97970.0,2.10275652]
[1736091014997,0.0766,97993.0,97970.0,2.11175652]
[1736091015152,0.0766,97993.0,97970.0,2.10575652]
[1736091015354,0.0766,97993.0,97970.0,2.11075652]
[1736091018411,0.0766,97993.0,97970.0,2.17495652]
[1736091020428,0.0766,97993.0,97970.0,2.17195652]
[1736091020610,0.0766,97993.0,97987.0,0.183697]
[1736091020810,0.05014799,97988.0,97987.0,0.28768332]
[1736091021016,0.05014799,97988.0,97987.0,0.31068332]
[1736091021017,0.05697608,97988.0,97987.0,0.31068332]
[1736091021439,0.05014799,97988.0,97987.0,1.81068332]
[1736091023669,0.05014799,97988.0,97987.0,1.96068332]
[1736091024127,0.05014799,97988.0,97987.0,1.96168332]
[1736091024646,0.05014799,97988.0,97987.0,1.96068332]
[1736091025042,0.05014799,97988.0,97987.0,1.96568332]
[1736091025620,0.05014799,97988.0,97987.0,1.96868332]
[1736091026491,0.05014799,97988.0,97987.0,2.00023472]
[1736091026715,0.05014799,97988.0,97987.0,2.00023982]
[1736091029393,0.05014799,97988.0,97987.0,1.99523982]
[1736091029598,0.05014799,97988.0,97987.0,2.02360227]
[1736091029837,0.05014799,97988.0,97987.0,2.02060227]
[1736091030044,0.05014799,97988.0,97987.0,2.01260227]
[1736091030686,0.00946112,97988.0,97987.0,2.24016227]
[1736091030985,0.0004854,97999.0,97998.0,0.434977]
[1736091031189,0.0004854,97999.0,97998.0,0.64596332]
[1736091031318,0.00097851,97999.0,97998.0,0.64596332]
[1736091032807,0.00097851,97999.0,97998.0,0.64896332]
[1736091033447,0.00097851,97999.0,97998.0,2.14896332]
[1736091033666,0.00097851,97999.0,97998.0,2.18051982]
[1736091033870,0.00097851,97999.0,97998.0,2.68051982]
[1736091034987,0.00097851,97999.0,97998.0,2.67751982]
[1736091035377,0.00097851,97999.0,97998.0,2.68351982]
[1736091035583,0.00097851,97999.0,97998.0,2.68751982]
[1736091035750,0.00097851,97999.0,97998.0,2.73331982]
[1736091035970,0.00097851,97999.0,97998.0,2.72331982]
[1736091036330,0.00097851,97999.0,97998.0,2.73831982]
[1736091036507,0.00097851,97999.0,97998.0,2.72931982]
[1736091036711,0.00097851,97999.0,97998.0,2.73127982]
[1736091036929,0.00097851,97999.0,97998.0,2.73231982]
[1736091037148,0.00097851,97999.0,97998.0,2.72331982]
[1736091038205,0.00097851,97999.0,97998.0,2.49221982]
[1736091038417,0.00097851,97999.0,97998.0,2.52637982]
[1736091038633,0.07797851,97999.0,97998.0,0.88341982]
[1736091039049,0.07797851,97999.0,97998.0,2.54937982]
[1736091039261,0.07797851,97999.0,97998.0,2.54241982]
[1736091039470,0.07797851,97999.0,97998.0,2.54841982]
[1736091039924,0.07797851,97999.0,97998.0,2.53941982]
[1736091040129,0.07797851,97999.0,97998.0,2.56041982]
[1736091040342,0.07797851,97999.0,97998.0,2.55841982]
[1736091040770,0.00139718,97999.0,97998.0,2.55941982]
[1736091040987,0.00139718,97999.0,97998.0,2.55841982]
[1736091041879,0.00139718,97999.0,97998.0,2.55641982]
[1736091042095,0.00139718,97999.0,97998.0,2.55841982]
[1736091042313,0.00139718,97999.0,97998.0,2.55941982]
[1736091042453,0.00139718,97999.0,97998.0,2.55741982]
[1736091042638,0.00139718,97999.0,97998.0,2.55641982]
[1736091042862,0.00139718,97999.0,97998.0,2.56341982]
[1736091043074,0.04699718,98011.0,98008.0,0.183657]
[1736091043288,0.04699718,98011.0,98008.0,0.28764332]
[1736091043545,0.0069602,98010.0,98008.0,0.28764332]
[1736091043758,0.04699718,98011.0,98008.0,0.28764332]
[1736091043956,0.04699718,98011.0,98009.0,1.50704]
[1736091044656,0.04699718,98011.0,98010.0,0.183654]
[1736091045966,0.04699718,98011.0,98010.0,0.28764032]
[1736091046620,0.04699718,98011.0,98010.0,1.78764032]
[1736091047210,0.04708258,98011.0,98010.0,1.81926221]
[1736091047456,0.04708258,98011.0,98010.0,1.78764032]
[1736091048816,0.04708258,98011.0,98010.0,1.78864032]
[1736091049185,0.04708258,98011.0,98010.0,1.82026706]
[1736091049384,0.04708258,98011.0,98010.0,1.80894977]
[1736091049829,0.04708258,98011.0,98010.0,1.80794977]
[1736091050440,0.04708258,98011.0,98010.0,1.80894977]
[1736091050668,8.54e-05,98011.0,98010.0,1.8405811]
[1736091050873,8.54e-05,98011.0,98010.0,1.8635811]
[1736091051453,8.54e-05,98011.0,98010.0,2.0135811]
[1736091051858,8.54e-05,98011.0,98010.0,2.0125811]
[1736091052064,8.54e-05,98011.0,98010.0,2.0934811]
[1736091052233,8.54e-05,98011.0,98010.0,2.0954811]
[1736091052433,8.54e-05,98011.0,98010.0,2.0964811]
[1736091052633,8.54e-05,98011.0,98010.0,2.0944811]
[1736091052927,8.54e-05,98011.0,98010.0,2.0934811]
[1736091053135,8.54e-05,98011.0,98010.0,2.0984811]
[1736091053316,8.54e-05,98011.0,98010.0,2.1014811]
[1736091053902,8.54e-05,98011.0,98010.0,2.1964411]
[1736091055042,8.54e-05,98011.0,98010.0,2.1934411]
[1736091055511,8.54e-05,98011.0,98010.0,2.66553395]
[1736091055717,8.54e-05,98011.0,98010.0,2.66353395]
[1736091056137,8.54e-05,98011.0,98010.0,2.66953395]
[1736091056535,8.54e-05,98011.0,98010.0,2.1994411]
[1736091056967,8.54e-05,98011.0,98010.0,2.2034411]
[1736091057712,8.54e-05,98011.0,98010.0,2.33940464]
[1736091058346,8.54e-05,98011.0,98010.0,2.33340464]
[1736091058761,8.54e-05,98011.0,98010.0,2.32940464]
[1736091058885,8.54e-05,98011.0,98010.0,2.33440464]
[1736091059288,8.54e-05,98011.0,98010.0,2.1984411]
[1736091059643,8.54e-05,98011.0,98010.0,2.2024411]
[1736091059843,8.54e-05,98011.0,98010.0,2.1984411]
[1736091060248,8.54e-05,98011.0,98010.0,2.2064411]
[1736091060550,8.54e-05,98011.0,98010.0,2.2014411]
[1736091060726,8.54e-05,98035.0,98034.0,0.183609]
[1736091060949,0.00180529,98035.0,98034.0,0.31763532]
[1736091061145,0.00023327,98035.0,98034.0,0.31763532]
[1736091061349,0.00023327,98035.0,98034.0,0.34926729]
[1736091061556,0.00023327,98035.0,98034.0,1.81763532]
[1736091061972,0.00023327,98035.0,98034.0,1.8492593]
[1736091062336,0.00023327,98035.0,98034.0,1.78959532]
[1736091062540,0.08213327,98035.0,98034.0,0.29663532]
[1736091062740,0.08910697,98035.0,98034.0,0.29663532]
[1736091062953,0.08910697,98035.0,98034.0,0.30872061]
[1736091063154,0.00720697,98035.0,98034.0,0.33172061]
[1736091063367,0.00019228,98035.0,98034.0,0.47972061]
[1736091063568,0.00019228,98035.0,98034.0,0.50933974]
[1736091063827,0.00019228,98035.0,98034.0,0.51033974]
[1736091064027,0.00019228,98035.0,98034.0,2.01133974]
[1736091065101,0.00019228,98035.0,98034.0,2.01033974]
[1736091065551,0.00019228,98035.0,98034.0,2.01133974]
[1736091065979,0.00019228,98035.0,98034.0,2.01333974]
[1736091066161,0.00019228,98035.0,98034.0,2.00933974]
[1736091066511,0.00019228,98035.0,98034.0,2.01333974]
[1736091068353,0.00019228,98035.0,98034.0,1.98329974]
[1736091068573,0.08239228,98035.0,98034.0,0.45872061]
[1736091069670,0.08239228,98035.0,98034.0,0.45672061]
[1736091070102,0.08239228,98035.0,98034.0,0.45772061]
[1736091070574,0.00019228,98035.0,98034.0,0.48072061]
[1736091071011,0.00019228,98035.0,98034.0,0.51231329]
[1736091071228,0.00019228,98035.0,98034.0,2.01231329]
[1736091071894,0.00019228,98035.0,98034.0,2.01031329]
[1736091072127,0.00019228,98035.0,98034.0,2.00931329]
[1736091072345,0.00019228,98035.0,98034.0,2.01131329]
[1736091072571,0.00019228,98035.0,98034.0,2.11027329]
[1736091073035,0.00019228,98035.0,98034.0,2.11527329]
[1736091073284,0.00019228,98035.0,98034.0,2.11027329]
[1736091073464,0.00019228,98035.0,98034.0,2.11727329]
[1736091073898,0.00019228,98035.0,98034.0,2.11027329]
[1736091074767,0.00019228,98035.0,98034.0,2.2012902]
[1736091076028,0.00019228,98035.0,98034.0,2.11027329]
[1736091076217,0.00019228,98035.0,98034.0,2.10927329]
[1736091076432,0.00019228,98035.0,98034.0,2.11827329]
[1736091076653,0.00019228,98035.0,98034.0,2.10927329]
[1736091077355,0.00019228,98035.0,98034.0,2.11827329]
[1736091077988,0.00019228,98035.0,98034.0,2.12227329]
[1736091078427,0.00019228,98035.0,98034.0,2.11827329]
[1736091078593,0.00019228,98035.0,98034.0,2.19315202]
[1736091078822,0.00019228,98035.0,98034.0,2.08223202]
[1736091079116,0.00019228,98035.0,98034.0,2.05963934]
[1736091079574,0.00019228,98035.0,98034.0,1.89759934]
[1736091079785,0.08099228,98035.0,98034.0,1.90063934]
[1736091080118,0.08099228,98035.0,98034.0,2.05063934]
[1736091080347,0.08099228,98035.0,98034.0,1.95663532]
[1736091080553,0.08099228,98035.0,98034.0,1.94963532]
[1736091080773,0.08099228,98035.0,98034.0,1.94259532]
[1736091081012,0.08099228,98035.0,98034.0,1.61102632]
[1736091081380,0.08099228,98035.0,98034.0,1.62040649]
[1736091081587,0.00019228,98035.0,98034.0,1.62040649]
[1736091081868,0.00019228,98035.0,98034.0,1.81563011]
[1736091082074,8.54e-05,98047.0,98035.0,0.173]
[1736091082356,8.54e-05,98047.0,98038.0,0.333602]
[1736091082558,8.54e-05,98047.0,98038.0,1.96919211]
[1736091083054,8.54e-05,98047.0,98038.0,1.99219211]
[1736091083055,1e-06,98039.0,98038.0,1.99219211]
[1736091083262,1e-06,98039.0,98038.0,2.17849211]
[1736091083471,1e-06,98039.0,98038.0,2.18487078]
[1736091083879,1e-06,98039.0,98038.0,2.18587078]
[1736091084760,4e-07,98047.0,98046.0,0.541147]
[1736091084971,4e-07,98047.0,98046.0,0.69973711]
[1736091085387,4e-07,98047.0,98046.0,2.20611578]
[1736091085813,4e-07,98047.0,98046.0,2.09851578]
[1736091086064,4e-07,98047.0,98046.0,2.10151578]
[1736091086276,4e-07,98047.0,98046.0,2.75481578]
[1736091086459,4e-07,98047.0,98046.0,2.76181578]
[1736091086658,4e-07,98047.0,98046.0,2.75481578]
[1736091087081,4e-07,98047.0,98046.0,2.75743711]
[1736091087288,0.0004,98079.0,98061.0,0.1076]
[1736091087497,1e-06,98079.0,98078.0,0.61887332]
[1736091087701,0.00014884,98079.0,98078.0,0.78104224]
[1736091087914,8.4e-07,98079.0,98078.0,2.74947332]
[1736091088123,4e-07,98087.0,98086.0,0.24996]
[1736091088345,0.0146834,98101.0,98100.0,0.173]
[1736091088346,0.01093575,98101.0,98100.0,0.173]
[1736091088552,8.54e-05,98110.0,98109.0,0.206469]
[1736091088766,0.00057802,98110.0,98109.0,0.31749532]
[1736091089000,0.00057802,98110.0,98109.0,1.81749532]
[1736091089219,0.00057802,98110.0,98109.0,1.96749532]
[1736091089426,0.00057802,98110.0,98109.0,2.61315532]
[1736091089642,0.09115337,98149.0,98109.0,2.61315532]
[1736091089643,0.09115337,98149.0,98137.0,0.183417]
[1736091089875,0.18230674,98154.0,98137.0,0.183417]
[1736091089876,0.18230674,98154.0,98150.0,0.09996]
[1736091090088,0.18230674,98154.0,98153.0,0.37694632]
[1736091090305,0.00999944,98154.0,98153.0,1.87694632]
[1736091090524,0.22788343,98156.0,98155.0,0.09996]
[1736091090739,1e-06,98159.0,98158.0,0.34996]
[1736091090989,0.40790751,98189.0,98188.0,0.09996]
[1736091091205,7e-05,98196.0,98188.0,0.09996]
[1736091091206,7e-05,98196.0,98195.0,0.433268]
[1736091091416,7e-05,98196.0,98195.0,0.56025432]
[1736091091632,0.0002177,98196.0,98195.0,0.56025432]
[1736091091844,0.00011459,98203.0,98199.0,0.09996]
[1736091092053,0.00011459,98203.0,98199.0,0.35394632]
[1736091092324,0.18223587,98210.0,98199.0,0.35394632]
[1736091092325,0.36551787,98210.0,98199.0,0.10398632]
[1736091092539,0.1,98202.0,98199.0,0.10398632]
[1736091092756,0.1,98214.0,98199.0,0.11102632]
[1736091092962,0.1,98220.0,98199.0,0.13402632]
[1736091093172,0.183247,98228.0,98199.0,0.13402632]
[1736091093173,0.1,98228.0,98199.0,0.13402632]
[1736091093377,0.1,98223.0,98199.0,0.78402632]
[1736091093593,0.1,98227.0,98199.0,1.10877123]
[1736091093807,0.1,98223.0,98201.0,0.366594]
[1736091094009,0.00049213,98227.0,98216.0,0.28725432]
[1736091094629,0.00049213,98227.0,98216.0,0.10398632]
[1736091094869,0.1,98225.0,98216.0,0.10398632]
[1736091095077,0.283292,98204.0,98179.0,0.30591798]
[1736091095284,0.1792857,98220.0,98194.0,0.09668047]
[1736091095496,0.366526,98219.0,98216.0,0.001]
[1736091095712,0.366526,98219.0,98217.0,0.13426887]
[1736091096395,0.43658653,98217.0,98216.0,0.3757]
[1736091096604,0.43658653,98217.0,98212.0,0.17902517]
[1736091096605,0.25331953,98213.0,98212.0,0.17902517]
[1736091096822,0.1,98202.0,98179.0,0.006]
[1736091097031,0.183336,98180.0,98179.0,0.006]
[1736091097237,0.183336,98180.0,98179.0,0.01332]
[1736091097457,0.183336,98180.0,98179.0,0.006]
[1736091097662,0.183336,98180.0,98179.0,0.01332]
[1736091097869,0.183336,98180.0,98179.0,0.006]
[1736091098076,0.183332,98183.0,98164.0,0.09668047]
[1736091098287,0.1792857,98180.0,98165.0,0.00732]
[1736091098494,0.1792857,98180.0,98151.0,0.00049213]
[1736091098495,0.183362,98166.0,98151.0,0.00049213]
[1736091098733,0.183379,98158.0,98152.0,0.11130632]
[1736091098945,0.183379,98158.0,98152.0,0.10398632]
[1736091099151,0.00192952,98157.0,98153.0,0.00732]
[1736091099325,0.00192952,98157.0,98153.0,0.11130632]
[1736091099866,0.183381,98156.0,98154.0,0.00732]
[1736091100112,0.183384,98155.0,98151.0,0.00049213]
[1736091100325,0.18530728,98155.0,98151.0,0.00049213]
[1736091100537,0.36869128,98155.0,98151.0,0.00049213]
[1736091100751,0.43544744,98155.0,98151.0,0.00049213]
[1736091101055,0.183387,98153.0,98151.0,0.00049213]
[1736091101276,0.00190871,98152.0,98151.0,0.00049213]
[1736091101650,0.00637866,98152.0,98151.0,0.00049213]
[1736091102431,0.00737866,98152.0,98151.0,0.00049213]
[1736091103475,0.00737866,98152.0,98151.0,0.00149213]
[1736091103476,0.01037866,98152.0,98151.0,0.00149213]
[1736091103675,0.01037866,98152.0,98151.0,0.00049213]
[1736091104528,0.01337866,98152.0,98151.0,0.00049213]
[1736091104905,0.01437866,98152.0,98151.0,0.00781213]
[1736091105111,0.01437866,98152.0,98151.0,0.11179845]
[1736091105349,0.01222584,98152.0,98151.0,0.11179845]
[1736091105557,0.007,98152.0,98151.0,0.35847892]
[1736091105761,0.183337,98180.0,98152.0,0.183389]
[1736091105972,0.183337,98180.0,98153.0,0.10398632]
[1736091106182,0.1852716,98179.0,98167.0,0.09668047]
[1736091106356,0.1852716,98179.0,98168.0,0.00732]
[1736091106357,0.183353,98172.0,98168.0,0.00732]
[1736091106605,0.183357,98169.0,98168.0,0.00732]
[1736091106815,0.183381,98156.0,98151.0,0.01049213]
[1736091106994,0.183381,98156.0,98152.0,0.00732]
[1736091107207,0.00186515,98155.0,98152.0,0.00732]
[1736091107413,0.00186515,98155.0,98151.0,0.00349213]
[1736091107414,0.00186515,98155.0,98153.0,0.11130632]
[1736091107653,0.183349,98174.0,98154.0,0.09668047]
[1736091107853,0.183338,98180.0,98155.0,0.10398632]
[1736091107854,0.00189617,98173.0,98155.0,0.10398632]
[1736091108059,0.183338,98180.0,98162.0,0.18337]
[1736091108261,0.18334,98178.0,98163.0,0.10398632]
[1736091108460,0.002,98172.0,98163.0,0.10398632]
[1736091108660,0.002,98172.0,98167.0,0.09668047]
[1736091108661,0.00191073,98171.0,98167.0,0.09668047]
[1736091108900,0.002,98172.0,98167.0,0.09668047]
[1736091109112,0.36664,98189.0,98169.0,0.09668047]
[1736091109320,0.36664,98189.0,98170.0,0.10398632]
[1736091109321,0.00189617,98171.0,98170.0,0.10398632]
[1736091109736,0.00189617,98171.0,98170.0,0.45136679]
[1736091110190,0.183311,98194.0,98186.0,0.09668047]
[1736091110395,0.007,98189.0,98187.0,0.11130632]
[1736091110810,0.183303,98198.0,98187.0,0.11130632]
[1736091111021,0.183303,98198.0,98188.0,0.00732]
[1736091111197,0.00531931,98197.0,98186.0,0.09668047]
[1736091111404,0.00331502,98197.0,98189.0,0.00732]
[1736091111614,8.52e-05,98199.0,98198.0,0.09668047]
[1736091111827,8.52e-05,98199.0,98198.0,0.38396979]
[1736091112239,8.52e-05,98199.0,98198.0,0.39128979]
[1736091112781,8.52e-05,98199.0,98198.0,0.38396979]
[1736091113354,8.52e-05,98199.0,98198.0,0.39428979]
[1736091113642,8.52e-05,98199.0,98198.0,0.10998632]
[1736091113905,8.52e-05,98199.0,98198.0,0.006]
[1736091114110,8.52e-05,98199.0,98198.0,0.01332]
[1736091115117,8.52e-05,98199.0,98198.0,0.01032]
[1736091115271,8.52e-05,98199.0,98198.0,0.00732]
[1736091115476,8.52e-05,98199.0,98198.0,0.001]
[1736091115679,8.52e-05,98199.0,98198.0,0.00832]
[1736091116104,8.52e-05,98199.0,98198.0,0.00732]
[1736091116312,0.0020852,98199.0,98189.0,0.09668047]
[1736091116512,0.183314,98193.0,98190.0,0.11130632]
[1736091116714,0.183303,98198.0,98190.0,0.11130632]
[1736091117410,0.183316,98191.0,98190.0,0.11130632]
[1736091117629,0.366632,98191.0,98178.0,0.09668047]
[1736091117838,0.366632,98191.0,98190.0,0.00732]
[1736091118040,0.366632,98191.0,98180.0,0.00732]
[1736091118245,0.366632,98191.0,98157.0,0.183378]
[1736091118458,0.1,98187.0,98151.0,0.09668047]
[1736091118665,0.20398632,98187.0,98145.0,0.0468]
[1736091118840,0.35398632,98187.0,98167.0,0.00732]
[1736091119898,0.35398632,98187.0,98168.0,0.0074904]
[1736091120102,0.154,98187.0,98186.0,0.00149213]
[1736091120523,0.004,98187.0,98186.0,0.00149213]
[1736091120724,0.006,98187.0,98186.0,0.00149213]
[1736091122003,0.004,98187.0,98186.0,0.00149213]
[1736091122424,0.002,98187.0,98186.0,0.00049213]
[1736091122863,0.008,98187.0,98186.0,0.00149213]
[1736091123076,0.0080852,98187.0,98186.0,0.00149213]
[1736091123278,8.52e-05,98187.0,98186.0,0.00149213]
[1736091123486,0.0010852,98187.0,98186.0,0.00149213]
[1736091123691,0.0010852,98187.0,98186.0,0.00049213]
[1736091123905,8.52e-05,98187.0,98186.0,0.00049213]
[1736091124121,0.24084344,98187.0,98186.0,0.00049213]
[1736091124305,0.20607152,98187.0,98186.0,0.00049213]
[1736091124725,0.35607152,98187.0,98186.0,0.00049213]
[1736091125138,0.35607152,98187.0,98186.0,0.00149213]
[1736091125557,0.37907152,98187.0,98186.0,1.3e-07]
[1736091125767,0.183355,98170.0,98169.0,0.00744]
[1736091125977,0.183355,98170.0,98169.0,0.0075877]
[1736091126543,0.183355,98170.0,98169.0,0.0001477]
[1736091126969,0.185355,98170.0,98169.0,0.0001477]
[1736091127389,0.193355,98170.0,98169.0,0.0011477]
[1736091127601,0.01,98170.0,98169.0,0.0011477]
[1736091127816,0.18118391,98170.0,98169.0,0.0011477]
[1736091128663,0.18118391,98170.0,98169.0,0.0001477]
[1736091128897,0.18318391,98170.0,98169.0,0.0001477]
[1736091129092,0.18518391,98170.0,98169.0,0.0001477]
[1736091129295,0.18518391,98170.0,98169.0,0.0075877]
[1736091129492,0.18118391,98170.0,98169.0,0.0075877]
[1736091129923,0.18218391,98170.0,98169.0,0.0075877]
[1736091130360,0.18218391,98170.0,98169.0,1.5075877]
[1736091130567,0.18718391,98170.0,98169.0,1.5075877]
[1736091130761,0.005,98170.0,98169.0,1.5075877]
[1736091131725,0.005,98170.0,98169.0,1.61157402]
[1736091131929,0.183325,98186.0,98174.0,0.09668047]
[1736091132067,0.183325,98186.0,98174.0,0.20066679]
[1736091132274,0.183325,98186.0,98174.0,0.38401379]
[1736091132721,8.52e-05,98187.0,98176.0,0.183344]
[1736091132920,8.52e-05,98187.0,98180.0,0.09668047]
[1736091133175,8.52e-05,98187.0,98181.0,0.10398632]
[1736091133563,8.52e-05,98187.0,98186.0,0.09668047]
[1736091133761,8.52e-05,98187.0,98186.0,0.32956679]
[1736091134017,8.52e-05,98187.0,98186.0,1.86844021]
[1736091134799,8.52e-05,98187.0,98186.0,1.86100021]
[1736091135001,8.52e-05,98187.0,98186.0,1.86844021]
[1736091136205,8.52e-05,98187.0,98186.0,1.87444021]
[1736091136466,8.52e-05,98187.0,98186.0,1.87744021]
[1736091136671,8.52e-05,98187.0,98186.0,0.37744021]
[1736091136877,8.52e-05,98187.0,98186.0,0.34300679]
[1736091137497,8.52e-05,98187.0,98186.0,0.34600679]
[1736091137930,8.52e-05,98187.0,98186.0,0.37744733]
[1736091138138,8.52e-05,98187.0,98186.0,0.37000733]
[1736091138295,8.52e-05,98187.0,98186.0,0.23246686]
[1736091138478,8.52e-05,98187.0,98186.0,0.12248054]